fUST/lending_fUST_20240930
["ID","MTS","AMOUNT","RATE_DAILY","PERIOD"]
[339545276,1727687451726,-501.45,0.0001436,2]
[339545277,1727687451736,-500.0,0.0001436,2]
[339545278,1727687451745,-500.0,0.0001436,2]
[339545279,1727687451755,-500.0,0.0001436,2]
[339545280,1727687451764,-500.0,0.0001436,2]
[339545281,1727687451774,-638.95,0.0001436,2]
[339545282,1727687451784,-873.0,0.0001436,2]
[339545283,1727687451793,-500.0,0.0001436,2]
[339545284,1727687451802,-500.0,0.0001436,2]
[339545285,1727687451811,-500.0,0.0001436,2]
[339545286,1727687451820,-500.0,0.0001436,2]
[339545287,1727687451830,-500.0,0.0001436,2]
[339545288,1727687451839,-500.0,0.0001436,2]
[339545289,1727687451848,-500.0,0.0001436,2]
[339545290,1727687451857,-500.0,0.0001436,2]
[339545291,1727687451867,-500.0,0.0001436,2]
[339545292,1727687451875,-500.0,0.0001436,2]
[339545293,1727687451885,-500.0,0.0001436,2]
[339545294,1727687451894,-500.0,0.0001436,2]
[339545295,1727687451903,-500.0,0.0001436,2]
[339545296,1727687451912,-781.36,0.0001436,2]
[339545297,1727687451922,-500.0,0.0001436,2]
[339545298,1727687451931,-500.0,0.0001436,2]
[339545299,1727687451941,-500.0,0.0001436,2]
[339545300,1727687451950,-500.0,0.0001436,2]
[339545301,1727687451959,-500.0,0.0001436,2]
[339545302,1727687451972,-500.0,0.0001436,2]
[339545303,1727687451982,-500.0,0.0001436,2]
[339545304,1727687451991,-500.0,0.0001436,2]
[339545305,1727687452000,-500.0,0.0001436,2]
[339545306,1727687452009,-500.0,0.0001436,2]
[339545307,1727687452019,-597.98,0.0001436,2]
[339545308,1727687452029,-500.0,0.0001436,2]
[339545309,1727687452038,-500.0,0.0001436,2]
[339545310,1727687452047,-500.0,0.0001436,2]
[339545311,1727687452057,-151.0,0.0001436,2]
[339545312,1727687452066,-151.0,0.0001436,2]
[339545313,1727687452075,-2091.87,0.0001436,2]
[339545314,1727687452084,-503.74,0.0001436,2]
[339545315,1727687452093,-500.0,0.0001436,2]
[339545316,1727687452102,-765.61,0.0001436,2]
[339545317,1727687452111,-500.0,0.0001436,2]
[339545318,1727687452121,-1444.57,0.0001436,2]
[339545319,1727687452130,-391.13010698,0.0001436,2]
[339545320,1727687452140,-500.0,0.0001436,2]
[339545321,1727687452149,-500.0,0.0001436,2]
[339545322,1727687452159,-500.0,0.0001436,2]
[339545323,1727687452169,-1993.848234,0.0001436,2]
[339545324,1727687452178,-1993.848234,0.0001436,2]
[339545325,1727687452188,-500.0,0.0001436,2]
[339545326,1727687452198,-500.0,0.0001436,2]
[339545327,1727687452207,-500.0,0.0001436,2]
[339545328,1727687452216,-1516.72,0.0001436,2]
[339545329,1727687452225,-500.0,0.0001436,2]
[339545330,1727687452235,-500.0,0.0001436,2]
[339545331,1727687452244,-500.0,0.0001436,2]
[339545332,1727687452254,-1115.41,0.0001436,2]
[339545333,1727687452263,-500.0,0.0001436,2]
[339545334,1727687452274,-500.0,0.0001436,2]
[339545335,1727687452283,-500.0,0.0001436,2]
[339545336,1727687452292,-560.49,0.0001436,2]
[339545337,1727687452302,-500.0,0.0001436,2]
[339545338,1727687452311,-500.0,0.0001436,2]
[339545339,1727687452320,-500.0,0.0001436,2]
[339545340,1727687452330,-151.0,0.0001436,2]
[339545341,1727687452339,-750.34,0.0001436,2]
[339545342,1727687452349,-500.0,0.0001436,2]
[339545343,1727687452358,-1915.62,0.0001436,2]
[339545344,1727687452367,-501.62,0.0001436,2]
[339545345,1727687452377,-500.0,0.0001436,2]
[339545346,1727687452386,-500.0,0.0001436,2]
[339545347,1727687452396,-151.0,0.0001436,2]
[339545348,1727687452405,-151.0,0.0001436,2]
[339545349,1727687452414,-151.0,0.0001436,2]
[339545350,1727687452423,-500.0,0.0001436,2]
[339545351,1727687452432,-500.0,0.0001436,2]
[339545352,1727687452442,-500.0,0.0001436,2]
[339545353,1727687452452,-500.0,0.0001436,2]
[339545354,1727687452461,-500.0,0.0001436,2]
[339545355,1727687452471,-500.0,0.0001436,2]
[339545356,1727687452481,-189.07307288,0.0001436,2]
[339545357,1727687452490,-500.0,0.0001436,2]
[339545358,1727687452500,-500.0,0.0001436,2]
[339545359,1727687452509,-500.0,0.0001436,2]
[339545360,1727687452521,-500.0,0.0001436,2]
[339545361,1727687452530,-500.0,0.0001436,2]
[339545362,1727687452540,-500.0,0.0001436,2]
[339545363,1727687452551,-500.0,0.0001436,2]
[339545364,1727687452561,-500.0,0.0001436,2]
[339545365,1727687452570,-500.0,0.0001436,2]
[339545366,1727687452579,-646.26,0.0001436,2]
[339545367,1727687452589,-500.0,0.0001436,2]
[339545368,1727687452599,-722.45,0.0001436,2]
[339545369,1727687452609,-500.0,0.0001436,2]
[339545370,1727687452618,-500.0,0.0001436,2]
[339545371,1727687452628,-500.0,0.0001436,2]
[339545372,1727687452637,-641.77,0.0001436,2]
[339545373,1727687452646,-500.0,0.0001436,2]
[339545374,1727687452656,-500.0,0.0001436,2]
[339545375,1727687452665,-500.0,0.0001436,2]
[339545376,1727687452675,-500.0,0.0001436,2]
[339545377,1727687452684,-500.0,0.0001436,2]
[339545378,1727687452694,-500.0,0.0001436,2]
[339545379,1727687452703,-500.0,0.0001436,2]
[339545380,1727687452713,-500.0,0.0001436,2]
[339545381,1727687452723,-500.0,0.0001436,2]
[339545382,1727687452733,-527.54,0.0001436,2]
[339545383,1727687452743,-500.0,0.0001436,2]
[339545384,1727687452752,-1284.23,0.0001436,2]
[339545385,1727687452762,-500.0,0.0001436,2]
[339545386,1727687452773,-500.0,0.0001436,2]
[339545387,1727687452782,-500.23031292,0.0001436,2]
[339545388,1727687452792,-617.52,0.0001436,2]
[339545389,1727687452801,-500.0,0.0001436,2]
[339545390,1727687452811,-500.0,0.0001436,2]
[339545391,1727687452821,-500.0,0.0001436,2]
[339545392,1727687452831,-513.59620938,0.0001436,2]
[339545393,1727687452840,-500.0,0.0001436,2]
[339545394,1727687452850,-1429.954841,0.0001436,2]
[339545395,1727687452859,-500.0,0.0001436,2]
[339545396,1727687452869,-500.0,0.0001436,2]
[339545397,1727687452879,-1429.954841,0.0001436,2]
[339545398,1727687452889,-500.0,0.0001436,2]
[339545399,1727687452898,-500.0,0.0001436,2]
[339545400,1727687452908,-500.0,0.0001436,2]
[339545401,1727687452917,-500.0,0.0001436,2]
[339545402,1727687452927,-500.0,0.0001436,2]
[339545403,1727687452936,-562.98,0.0001436,2]
[339545404,1727687452946,-500.0,0.0001436,2]
[339545405,1727687452955,-252.26981,0.0001436,2]
[339545406,1727687452965,-587.64,0.0001436,2]
[339545407,1727687452974,-1067.55,0.0001436,2]
[339545408,1727687452984,-252.26981,0.0001436,2]
[339545409,1727687452994,-500.0,0.0001436,2]
[339545410,1727687453003,-151.0,0.0001436,2]
[339545411,1727687453013,-282.134629,0.0001436,2]
[339545412,1727687453023,-282.134629,0.0001436,2]
[339545413,1727687453033,-1596.86,0.0001436,2]
[339545414,1727687453042,-278.812365,0.0001436,2]
[339545415,1727687453051,-278.812365,0.0001436,2]
[339545416,1727687453061,-552.09,0.0001436,2]
[339545417,1727687453071,-500.0,0.0001436,2]
[339545418,1727687453080,-500.0,0.0001436,2]
[339545419,1727687453090,-500.0,0.0001436,2]
[339545420,1727687453099,-500.0,0.0001436,2]
[339545421,1727687453109,-895.63,0.0001436,2]
[339545422,1727687453118,-500.0,0.0001436,2]
[339545423,1727687453127,-500.0,0.0001436,2]
[339545424,1727687453137,-500.0,0.0001436,2]
[339545425,1727687453147,-500.0,0.0001436,2]
[339545426,1727687453156,-500.0,0.0001436,2]
[339545427,1727687453166,-500.0,0.0001436,2]
[339545428,1727687453175,-500.0,0.0001436,2]
[339545429,1727687453185,-500.0,0.0001436,2]
[339545430,1727687453196,-487.5830356,0.0001436,2]
[339545431,1727687453205,-500.0,0.0001436,2]
[339545432,1727687453215,-500.0,0.0001436,2]
[339545433,1727687453224,-500.0,0.0001436,2]
[339545434,1727687453233,-517.74,0.0001436,2]
[339545435,1727687453243,-277.52677986,0.0001436,2]
[339545436,1727687453252,-500.0,0.0001436,2]
[339545437,1727687453262,-500.0,0.0001436,2]
[339545438,1727687453273,-500.0,0.0001436,2]
[339545439,1727687453282,-1433.46,0.0001436,2]
[339545440,1727687453292,-632.02,0.0001436,2]
[339545441,1727687453301,-151.0,0.0001436,2]
[339545442,1727687453311,-500.0,0.0001436,2]
[339545443,1727687453321,-151.0,0.0001436,2]
[339545444,1727687453330,-151.0,0.0001436,2]
[339545445,1727687453339,-500.0,0.0001436,2]
[339545446,1727687453349,-151.0,0.0001436,2]
[339545447,1727687453358,-2266.38,0.0001436,2]
[339545448,1727687453368,-500.0,0.0001436,2]
[339545449,1727687453378,-503.32,0.0001436,2]
[339545450,1727687453387,-151.0,0.0001436,2]
[339545451,1727687453397,-329.929165,0.0001436,2]
[339545452,1727687453406,-329.929165,0.0001436,2]
[339545453,1727687453416,-151.0,0.0001436,2]
[339545454,1727687453425,-2080.472593,0.0001436,2]
[339545455,1727687453434,-2080.472593,0.0001436,2]
[339545456,1727687453444,-151.0,0.0001436,2]
[339545457,1727687453453,-151.0,0.0001436,2]
[339545458,1727687453463,-151.0,0.0001436,2]
[339545459,1727687453473,-151.0,0.0001436,2]
[339545460,1727687453483,-151.0,0.0001436,2]
[339545461,1727687453492,-151.0,0.0001436,2]
[339545462,1727687453502,-896.122989,0.0001436,2]
[339545463,1727687453512,-896.122989,0.0001436,2]
[339545464,1727687453526,-500.0,0.00014361,2]
[339545465,1727687453536,-500.0,0.00014361,2]
[339545466,1727687453545,-500.0,0.00014361,2]
[339545467,1727687453555,-486.54599338,0.00014361,2]
[339545468,1727687453566,-500.0,0.00014361,2]
[339545469,1727687453576,-500.0,0.00014361,2]
[339545470,1727687453586,-500.0,0.00014361,2]
[339545471,1727687453595,-263.50113899,0.00014361,2]
[339545472,1727687453605,-500.0,0.00014361,2]
[339545473,1727687453615,-500.0,0.00014361,2]
[339545474,1727687453625,-500.0,0.00014361,2]
[339545475,1727687453635,-500.0,0.00014361,2]
[339545476,1727687453645,-500.0,0.00014361,2]
[339545477,1727687453655,-500.0,0.00014361,2]
[339545478,1727687453665,-500.0,0.00014361,2]
[339545479,1727687453675,-500.0,0.00014361,2]
[339545480,1727687453685,-500.0,0.00014361,2]
[339545481,1727687453694,-500.0,0.00014361,2]
[339545482,1727687453704,-500.0,0.00014361,2]
[339545483,1727687453713,-500.0,0.00014361,2]
[339545484,1727687453723,-507.37077679,0.00014361,2]
[339545485,1727687453733,-500.0,0.00014361,2]
[339545486,1727687453744,-500.0,0.00014361,2]
[339545487,1727687453754,-500.0,0.00014361,2]
[339545488,1727687453764,-500.0,0.00014361,2]
[339545489,1727687453775,-500.0,0.00014361,2]
[339545490,1727687453784,-259.982315,0.00014361,2]
[339545491,1727687453794,-259.982315,0.00014361,2]
[339545492,1727687453804,-173.118349,0.00014361,2]
[339545493,1727687453814,-552.649123,0.00014361,2]
[339545494,1727687453824,-151.0,0.00014361,2]
[339545495,1727687453834,-552.649123,0.00014361,2]
[339545496,1727687453844,-153.850686,0.00014361,2]
[339545497,1727687453854,-153.850686,0.00014361,2]
[339545498,1727687453865,-151.0,0.00014361,2]
[339545499,1727687453874,-151.0,0.00014361,2]
[339545500,1727687453885,-151.0,0.00014362,2]
[339545501,1727687453895,-151.0,0.00014372,2]
[339545502,1727687453905,-151.0,0.00014372,2]
[339545503,1727687453915,-387.980848,0.00014372,2]
[339545504,1727687453924,-387.980848,0.00014372,2]
[339545505,1727687453934,-500.0,0.00014373,2]
[339545506,1727687453945,-429.0,0.00014384,2]
[339545507,1727687453954,-150.0,0.00014384,2]
[339545508,1727687453964,-150.0,0.00014384,2]
[339545509,1727687453974,-1000.0,0.00014389,2]
[339545510,1727687453983,-1000.0,0.000144,2]
[339545511,1727687453993,-429.0,0.00014411,2]
[339545512,1727687454002,-150.0,0.00014411,2]
[339545513,1727687454013,-150.0,0.00014411,2]
[339545514,1727687454023,-1500.0,0.00014427,2]
[339545515,1727687454033,-429.0,0.00014439,2]
[339545516,1727687454042,-150.0,0.00014439,2]
[339545517,1727687454052,-150.0,0.00014439,2]
[339545518,1727687454061,-500.0,0.00014442,2]
[339545519,1727687454071,-2000.0,0.00014455,2]
[339545520,1727687454080,-429.0,0.00014466,2]
[339545521,1727687454090,-150.0,0.00014466,2]
[339545522,1727687454100,-241.30539446,0.00014466,2]
[339545523,1727687454110,-1336.0584778,0.00014482,2]
[339545524,1727687454119,-429.0,0.00014494,2]
[339545525,1727687454129,-291.64125952,0.00014494,2]
[339545526,1727687454138,-1000.0,0.00014506,2]
[339545527,1727687454148,-7069.19095078,0.00014508,2]
[339545528,1727687454157,-429.0,0.00014521,2]
[339545529,1727687454167,-1000.0,0.00014526,2]
[339545530,1727687454176,-1000.0,0.00014542,2]
[339545531,1727687454186,-429.0,0.00014548,2]
[339545532,1727687454196,-1000.0,0.0001457,2]
[339545533,1727687454206,-429.0,0.00014576,2]
[339545534,1727687454215,-151.0,0.0001458,2]
[339545535,1727687454225,-151.0,0.0001458,2]
[339545536,1727687454235,-150.0,0.0001458,2]
[339545537,1727687454244,-150.0,0.0001458,2]
[339545538,1727687454254,-150.112233,0.000146,2]
[339545539,1727687454264,-1000.0,0.000146,2]
[339545540,1727687454275,-4352.15078129,0.00014602,2]
[339545541,1727687454285,-4249.14600626,0.00014602,2]
[339545542,1727687454295,-429.0,0.00014603,2]
[339545543,1727687454304,-151.0,0.00014604,2]
[339545544,1727687454314,-151.0,0.00014604,2]
[339545545,1727687454324,-151.0,0.00014604,2]
[339545546,1727687454333,-151.0,0.00014604,2]
[339545547,1727687454343,-1429.954841,0.00014604,2]
[339545548,1727687454352,-1429.954841,0.00014604,2]
[339545549,1727687454362,-282.134629,0.00014604,2]
[339545550,1727687454372,-282.134629,0.00014604,2]
[339545551,1727687454381,-8704.30156258,0.00014612,2]
[339545552,1727687454391,-8498.29201252,0.00014612,2]
[339545553,1727687454400,-500.0,0.00014612,2]
[339545554,1727687454410,-19689.26,0.00014612,2]
[339545555,1727687454420,-500.0,0.00014612,2]
[339545556,1727687454430,-3219.52,0.00014612,2]
[339545557,1727687454440,-675.58,0.00014612,2]
[339545558,1727687454450,-361.12412605,0.00014612,2]
[339545559,1727687454460,-500.0,0.00014612,2]
[339545560,1727687454471,-500.0,0.00014612,2]
[339545561,1727687454481,-500.0,0.00014612,2]
[339545562,1727687454490,-500.0,0.00014612,2]
[339545563,1727687454500,-500.0,0.00014612,2]
[339545564,1727687454510,-500.0,0.00014612,2]
[339545565,1727687454523,-1101.88,0.00014612,2]
[339545566,1727687454536,-500.0,0.00014612,2]
[339545567,1727687454546,-500.0,0.00014612,2]
[339545568,1727687454555,-500.0,0.00014612,2]
[339545569,1727687454566,-342.58026692,0.00014612,2]
[339545570,1727687454578,-162.31456302,0.00014612,2]
[339545571,1727687454588,-699.72,0.00014612,2]
[339545572,1727687454599,-500.0,0.00014612,2]
[339545573,1727687454609,-500.0,0.00014612,2]
[339545574,1727687454619,-500.0,0.00014612,2]
[339545575,1727687454629,-500.0,0.00014612,2]
[339545576,1727687454639,-500.0,0.00014612,2]
[339545577,1727687454649,-151.0,0.00014612,2]
[339545578,1727687454658,-1329.81,0.00014612,2]
[339545579,1727687454668,-500.0,0.00014612,2]
[339545580,1727687454678,-500.0,0.00014612,2]
[339545581,1727687454688,-151.0,0.00014612,2]
[339545582,1727687454697,-796.32,0.00014612,2]
[339545583,1727687454707,-500.0,0.00014612,2]
[339545584,1727687454716,-151.0,0.00014612,2]
[339545585,1727687454726,-500.0,0.00014612,2]
[339545586,1727687454735,-1015.89,0.00014612,2]
[339545587,1727687454744,-2650.0,0.00014612,2]
[339545588,1727687454754,-500.0,0.00014612,2]
[339545589,1727687454764,-151.0,0.00014612,2]
[339545590,1727687454775,-738.06,0.00014612,2]
[339545591,1727687454784,-1503.55,0.00014612,2]
[339545592,1727687454794,-500.0,0.00014612,2]
[339545593,1727687454803,-500.0,0.00014612,2]
[339545594,1727687454813,-500.0,0.00014612,2]
[339545595,1727687454823,-177.647,0.00014617,2]
[339545596,1727687454832,-500.0,0.00014621,2]
[339545597,1727687454842,-500.0,0.00014622,2]
[339545598,1727687454852,-580.74,0.00014622,2]
[339545599,1727687454862,-500.0,0.00014622,2]
[339545600,1727687454871,-500.0,0.00014622,2]
[339545601,1727687454881,-500.0,0.00014622,2]
[339545602,1727687454891,-500.0,0.00014622,2]
[339545603,1727687454901,-512.19493801,0.00014622,2]
[339545604,1727687454911,-500.0,0.00014622,2]
[339545605,1727687455133,-500.0,0.00014622,2]
[339545606,1727687455146,-500.0,0.00014622,2]
[339545607,1727687455156,-655.01,0.00014622,2]
[339545608,1727687455165,-500.0,0.00014622,2]
[339545609,1727687455175,-500.0,0.00014622,2]
[339545610,1727687455185,-500.0,0.00014622,2]
[339545611,1727687455194,-500.0,0.00014622,2]
[339545612,1727687455204,-995.42,0.00014622,2]
[339545613,1727687455214,-500.0,0.00014622,2]
[339545614,1727687455223,-500.0,0.00014622,2]
[339545615,1727687455232,-699.58,0.00014622,2]
[339545616,1727687455242,-500.0,0.00014622,2]
[339545617,1727687455251,-500.0,0.00014622,2]
[339545618,1727687455261,-853.05,0.00014622,2]
[339545619,1727687455272,-500.0,0.00014622,2]
[339545620,1727687455281,-500.0,0.00014622,2]
[339545621,1727687455291,-540.31,0.00014622,2]
[339545622,1727687455300,-500.0,0.00014622,2]
[339545623,1727687455309,-157.72628676,0.00014622,2]
[339545624,1727687455319,-500.0,0.00014622,2]
[339545625,1727687455328,-500.0,0.00014622,2]
[339545626,1727687455338,-500.0,0.00014622,2]
[339545627,1727687455348,-393.39404862,0.00014622,2]
[339545628,1727687455357,-644.71,0.00014622,2]
[339545629,1727687455367,-500.0,0.00014622,2]
[339545630,1727687455376,-500.0,0.00014622,2]
[339545631,1727687455385,-511.46,0.00014622,2]
[339545632,1727687455395,-500.0,0.00014622,2]
[339545633,1727687455404,-859.91,0.00014622,2]
[339545634,1727687455413,-500.0,0.00014622,2]
[339545635,1727687455423,-500.0,0.00014622,2]
[339545636,1727687455432,-500.0,0.00014622,2]
[339545637,1727687455441,-500.0,0.00014622,2]
[339545638,1727687455451,-500.0,0.00014622,2]
[339545639,1727687455460,-500.0,0.00014622,2]
[339545640,1727687455471,-664.97,0.00014622,2]
[339545641,1727687455481,-2104.23,0.00014622,2]
[339545642,1727687455491,-500.0,0.00014622,2]
[339545643,1727687455500,-500.0,0.00014622,2]
[339545644,1727687455510,-500.0,0.00014622,2]
[339545645,1727687455520,-500.0,0.00014622,2]
[339545646,1727687455531,-500.0,0.00014622,2]
[339545647,1727687455541,-500.0,0.00014622,2]
[339545648,1727687455552,-500.0,0.00014622,2]
[339545649,1727687455562,-500.0,0.00014622,2]
[339545650,1727687455571,-537.7,0.00014622,2]
[339545651,1727687455581,-500.0,0.00014622,2]
[339545652,1727687455591,-789.63,0.00014622,2]
[339545653,1727687455600,-500.0,0.00014622,2]
[339545654,1727687455610,-500.0,0.00014622,2]
[339545655,1727687455619,-500.0,0.00014622,2]
[339545656,1727687455628,-500.0,0.00014622,2]
[339545657,1727687455638,-503.40816056,0.00014622,2]
[339545658,1727687455648,-517.09822318,0.00014622,2]
[339545659,1727687455657,-500.0,0.00014622,2]
[339545660,1727687455667,-500.0,0.00014622,2]
[339545661,1727687455676,-500.0,0.00014622,2]
[339545662,1727687455686,-500.0,0.00014622,2]
[339545663,1727687455695,-500.0,0.00014622,2]
[339545664,1727687455705,-500.0,0.00014622,2]
[339545665,1727687455715,-500.0,0.00014622,2]
[339545666,1727687455724,-500.0,0.00014622,2]
[339545667,1727687455733,-528.19098392,0.00014622,2]
[339545668,1727687455742,-500.0,0.00014622,2]
[339545669,1727687455751,-857.67,0.00014622,2]
[339545670,1727687455761,-500.0,0.00014622,2]
[339545671,1727687455771,-500.0,0.00014622,2]
[339545672,1727687455780,-500.0,0.00014622,2]
[339545673,1727687455790,-500.0,0.00014622,2]
[339545674,1727687455799,-500.0,0.00014622,2]
[339545675,1727687455808,-620.33,0.00014622,2]
[339545676,1727687455818,-500.0,0.00014622,2]
[339545677,1727687455827,-500.0,0.00014622,2]
[339545678,1727687455836,-500.0,0.00014622,2]
[339545679,1727687455845,-500.0,0.00014622,2]
[339545680,1727687455854,-500.0,0.00014622,2]
[339545681,1727687455863,-1606.42,0.00014622,2]
[339545682,1727687455873,-500.0,0.00014622,2]
[339545683,1727687455882,-500.0,0.00014622,2]
[339545684,1727687455892,-252.26981,0.00014622,2]
[339545685,1727687455901,-500.0,0.00014622,2]
[339545686,1727687455910,-500.0,0.00014622,2]
[339545687,1727687455919,-500.0,0.00014622,2]
[339545688,1727687455929,-252.26981,0.00014622,2]
[339545689,1727687455939,-635.52,0.00014622,2]
[339545690,1727687455949,-157.313943,0.00014622,2]
[339545691,1727687455958,-1407.08,0.00014622,2]
[339545692,1727687455967,-278.812365,0.00014622,2]
[339545693,1727687455977,-500.0,0.00014622,2]
[339545694,1727687455987,-278.812365,0.00014622,2]
[339545695,1727687455997,-500.0,0.00014622,2]
[339545696,1727687456006,-500.0,0.00014622,2]
[339545697,1727687456015,-500.0,0.00014622,2]
[339545698,1727687456026,-500.0,0.00014622,2]
[339545699,1727687456035,-350.79695751,0.00014622,2]
[339545700,1727687456044,-500.0,0.00014622,2]
[339545701,1727687456053,-500.0,0.00014622,2]
[339545702,1727687456062,-500.0,0.00014622,2]
[339545703,1727687456072,-500.0,0.00014622,2]
[339545704,1727687456082,-500.0,0.00014622,2]
[339545705,1727687456091,-500.0,0.00014622,2]
[339545706,1727687456101,-1616.1,0.00014622,2]
[339545707,1727687456110,-438.69561253,0.00014622,2]
[339545708,1727687456119,-500.0,0.00014622,2]
[339545709,1727687456129,-500.0,0.00014622,2]
[339545710,1727687456138,-500.0,0.00014622,2]
[339545711,1727687456147,-500.0,0.00014622,2]
[339545712,1727687456156,-875.59,0.00014622,2]
[339545713,1727687456166,-500.0,0.00014622,2]
[339545714,1727687456175,-500.0,0.00014622,2]
[339545715,1727687456185,-1251.42,0.00014622,2]
[339545716,1727687456194,-500.0,0.00014622,2]
[339545717,1727687456204,-500.0,0.00014622,2]
[339545718,1727687456213,-500.0,0.00014622,2]
[339545719,1727687456223,-500.0,0.00014622,2]
[339545720,1727687456232,-500.0,0.00014622,2]
[339545721,1727687456241,-500.0,0.00014622,2]
[339545722,1727687456251,-151.0,0.00014622,2]
[339545723,1727687456260,-500.0,0.00014622,2]
[339545724,1727687456270,-500.0,0.00014622,2]
[339545725,1727687456280,-151.0,0.00014622,2]
[339545726,1727687456289,-500.0,0.00014622,2]
[339545727,1727687456299,-168.617411,0.00014622,2]
[339545728,1727687456308,-500.0,0.00014622,2]
[339545729,1727687456318,-151.0,0.00014622,2]
[339545730,1727687456327,-500.0,0.00014622,2]
[339545731,1727687456337,-500.0,0.00014622,2]
[339545732,1727687456346,-500.0,0.00014622,2]
[339545733,1727687456355,-500.0,0.00014622,2]
[339545734,1727687456364,-500.0,0.00014622,2]
[339545735,1727687456373,-786.91,0.00014622,2]
[339545736,1727687456383,-500.0,0.00014622,2]
[339545737,1727687456392,-500.0,0.00014622,2]
[339545738,1727687456401,-151.0,0.00014622,2]
[339545739,1727687456411,-500.0,0.00014622,2]
[339545740,1727687456420,-329.929165,0.00014622,2]
[339545741,1727687456429,-500.0,0.00014622,2]
[339545742,1727687456438,-500.0,0.00014622,2]
[339545743,1727687456448,-885.95,0.00014622,2]
[339545744,1727687456457,-329.929165,0.00014622,2]
[339545745,1727687456467,-500.0,0.00014622,2]
[339545746,1727687456476,-500.0,0.00014622,2]
[339545747,1727687456486,-151.0,0.00014622,2]
[339545748,1727687456495,-500.0,0.00014622,2]
[339545749,1727687456505,-1111.23,0.00014622,2]
[339545750,1727687456515,-500.0,0.00014622,2]
[339545751,1727687456529,-2080.472593,0.00014622,2]
[339545752,1727687456539,-2658.86,0.00014622,2]
[339545753,1727687456549,-509.61395947,0.00014622,2]
[339545754,1727687456559,-500.0,0.00014622,2]
[339545755,1727687456569,-500.0,0.00014622,2]
[339545756,1727687456579,-2080.472593,0.00014622,2]
[339545757,1727687456588,-500.0,0.00014622,2]
[339545758,1727687456599,-641.4,0.00014622,2]
[339545759,1727687456608,-500.0,0.00014622,2]
[339545760,1727687456617,-500.0,0.00014622,2]
[339545761,1727687456627,-500.0,0.00014622,2]
[339545762,1727687456636,-500.0,0.00014622,2]
[339545763,1727687456645,-500.0,0.00014622,2]
[339545764,1727687456655,-500.0,0.00014622,2]
[339545765,1727687456664,-500.0,0.00014622,2]
[339545766,1727687456674,-151.0,0.00014622,2]
[339545767,1727687456683,-151.0,0.00014622,2]
[339545768,1727687456694,-1323.68,0.00014622,2]
[339545769,1727687456703,-533.13,0.00014622,2]
[339545770,1727687456713,-151.0,0.00014622,2]
[339545771,1727687456722,-500.0,0.00014622,2]
[339545772,1727687456732,-500.0,0.00014622,2]
[339545773,1727687456741,-500.0,0.00014622,2]
[339545774,1727687456751,-500.0,0.00014622,2]
[339545775,1727687456761,-500.0,0.00014622,2]